bitfinex-derivatives/quotes_SOLF0:USTF0_20240905
["timestamp","ask_amount","ask_price","bid_price","bid_amount"]
[1725544435092,3.7404,133.69,133.64,2.7914]
[1725544435485,3.74,133.7,133.64,2.7914]
[1725544435699,28.76,133.73,133.64,2.7914]
[1725544435894,28.76,133.73,133.64,31.5514]
[1725544436088,0.05142027,133.7,133.68,3.7402]
[1725544436893,0.05142027,133.7,133.69,3.7401]
[1725544437698,31.7482,133.78,133.69,28.76]
[1725544437893,0.27498094,133.77,133.66,291.94058]
[1725544438091,31.7482,133.78,133.67,28.76]
[1725544438299,28.76,133.76,133.67,28.76]
[1725544438696,3.7395,133.72,133.7,0.05178551]
[1725544439498,3.7396,133.71,133.7,0.05178551]
[1725544439999,3.7391,133.73,133.7,0.05178551]
[1725544440200,3.68977648,133.75,133.7,0.05178551]
[1725544440592,1.0,133.77,133.71,3.7395]
[1725544440798,0.27501229,133.76,133.71,3.7395]
[1725544440992,1.0,133.77,133.7,0.05178551]
[1725544441510,1.0,133.77,133.71,28.76]
[1725544441801,1.0,133.77,133.7,0.05178551]
[1725544442206,2.9274,133.81,133.71,28.76]
[1725544442207,3.7373,133.8,133.71,28.76]
[1725544442505,2.5879,133.81,133.74,0.04761078]
[1725544442692,3.7372,133.8,133.75,3.7382]
[1725544442893,3.7372,133.8,133.76,0.05723909]
[1725544443302,2.7866,133.84,133.78,3.7374]
[1725544443504,28.76,133.85,133.8,0.05410605]
[1725544444893,28.76,133.83,133.8,0.05410605]
[1725544445099,3.7365,133.82,133.8,0.05410605]
[1725544445294,32.46227578,133.86,133.8,0.05410605]
[1725544445699,28.76,133.88,133.8,0.05410605]
[1725544446004,28.76,133.88,133.83,0.05683712]
[1725544446304,28.76,133.88,133.84,0.04750397]
[1725544446305,3.7359,133.85,133.84,0.04750397]
[1725544446900,3.7357,133.85,133.84,0.04750397]
[1725544448001,29.0995,133.9,133.84,0.04750397]
[1725544448204,0.27477237,133.89,133.84,0.04750397]
[1725544448402,0.27473445,133.91,133.85,0.04795615]
[1725544448703,28.76,133.92,133.85,0.04795615]
[1725544448904,0.27471707,133.91,133.85,0.04795615]
[1725544449201,28.76,133.95,133.85,28.80795615]
[1725544449405,3.94684589,133.94,133.89,0.05226554]
[1725544449606,0.3418,133.96,133.89,0.05226554]
[1725544449803,0.27467189,133.95,133.89,0.05226554]
[1725544450001,0.27467189,133.94,133.89,0.05226554]
[1725544450205,28.76,133.95,133.89,0.05226554]
[1725544450404,3.7337,133.92,133.91,0.05351137]
[1725544450604,3.66954996,133.93,133.9,0.05609252]
[1725544450805,28.76,133.95,133.9,0.05609252]
[1725544451103,3.7342,133.91,133.9,0.05609252]
[1725544451703,28.76,133.97,133.9,0.05609252]
[1725544451898,0.27464849,133.96,133.9,0.05609252]
[1725544452208,28.76,133.97,133.9,0.05609252]
[1725544452209,32.52886631,133.97,133.9,0.05609252]
[1725544452908,28.76,133.97,133.9,0.05609252]
[1725544453206,28.76,133.96,133.9,0.05609252]
[1725544454002,3.734,133.91,133.9,0.05609252]
[1725544455003,3.7339,133.92,133.9,0.05609252]
[1725544455211,1.0,133.95,133.9,0.05609252]
[1725544455596,1.0,133.95,133.9,3.79019252]
[1725544455597,3.7333,133.94,133.9,3.79019252]
[1725544455800,1.0,133.95,133.9,3.79019252]
[1725544456008,3.7333,133.94,133.9,3.79019252]
[1725544456210,1.0,133.95,133.9,0.05609252]
[1725544456903,3.7329,133.95,133.9,0.05609252]
[1725544457098,29.1008,134.0,133.9,0.05609252]
[1725544457299,28.76,134.0,133.93,0.0548369]
[1725544457510,3.7327,133.96,133.93,3.7882369]
[1725544457705,32.47807154,134.0,133.93,0.0548369]
[1725544457906,32.47807154,134.0,133.94,3.733]
[1725544457907,3.7322,133.98,133.94,3.733]
[1725544458117,2.7324,134.02,133.93,0.0548369]
[1725544458405,2.7324,134.02,133.92,32.52998114]
[1725544458406,3.71545739,134.01,133.96,0.04798633]
[1725544458610,3.7321,133.98,133.96,0.04798633]
[1725544458799,3.71545739,134.01,133.96,0.04798633]
[1725544459001,3.7323,133.97,133.96,0.04798633]
[1725544459508,3.7321,133.98,133.96,0.04798633]
[1725544459710,28.76,134.03,133.96,0.04798633]
[1725544460111,3.7316,134.0,133.96,3.78038633]
[1725544460602,3.7318,133.99,133.96,0.04798633]
[1725544461011,3.80396512,134.03,133.96,0.04798633]
[1725544461211,3.7316,134.0,133.96,6.53188633]
[1725544461416,3.7316,134.0,133.97,0.0516034]
[1725544461918,32.52577637,134.03,133.97,0.0516034]
[1725544462115,28.76,134.01,133.97,0.0516034]
[1725544462310,3.7338,133.92,133.89,34.0999]
[1725544462511,3.7338,133.92,133.89,5.3399]
[1725544462718,3.75345527,133.96,133.89,5.3399]
[1725544463404,3.7335,133.93,133.91,0.05214613]
[1725544463605,0.05185804,133.94,133.91,0.05214613]
[1725544463912,3.7334,133.93,133.91,0.05214613]
[1725544464215,0.05185804,133.94,133.91,0.05214613]
[1725544464409,0.05185804,133.94,133.92,3.7335]
[1725544464714,0.05185804,133.94,133.91,0.05214613]
[1725544465216,2.4340354,134.19,133.92,28.76]
[1725544465414,3.7333,133.94,133.9,32.4941]
[1725544465610,28.76,133.98,133.9,28.76]
[1725544466010,28.76,133.98,133.89,5.3399]
[1725544466212,28.76,133.98,133.92,0.05453972]
[1725544466714,3.7334,133.93,133.92,0.05453972]
[1725544467612,7.47565184,133.93,133.92,0.05453972]
[1725544468215,3.7334,133.93,133.92,0.05453972]
[1725544469219,3.67764011,133.93,133.84,28.76]
[1725544469419,28.76,133.9,133.81,34.184]
[1725544470213,3.7355,133.86,133.84,0.05322229]
[1725544470416,0.05023883,133.87,133.84,0.05322229]
[1725544470828,3.7357,133.85,133.84,0.05322229]
[1725544472020,3.78543883,133.87,133.84,0.05322229]
[1725544472618,0.05023883,133.87,133.84,0.05322229]
[1725544473219,0.05023883,133.87,133.86,3.7354]
[1725544473421,1.0,133.92,133.85,28.76]
[1725544473622,3.64555955,133.94,133.89,3.7344]
[1725544473820,31.8553,133.97,133.89,3.7344]
[1725544474020,31.8553,133.97,133.86,287.25708]
[1725544474422,35.49983986,133.97,133.86,287.25708]
[1725544474629,35.49983986,133.97,133.91,3.7338]
[1725544475025,35.49983986,133.97,133.9,0.05003864]
[1725544475227,35.49983986,133.97,133.92,3.7337]
[1725544475421,35.49983986,133.97,133.93,0.05114841]
[1725544475621,35.49983986,133.97,133.94,0.04782679]
[1725544475919,35.49983986,133.97,133.94,0.04703388]
[1725544476925,35.16773986,133.97,133.94,0.04703388]
[1725544477129,6.40773986,133.97,133.94,0.04703388]
[1725544477525,28.76,133.99,133.94,0.04703388]
[1725544478618,28.76,133.96,133.94,0.04703388]
[1725544478823,28.76,133.98,133.94,0.04703388]
[1725544479022,32.4922,133.98,133.94,3.77993388]
[1725544479219,28.76,134.0,133.94,0.04703388]
[1725544479625,32.4916,134.0,133.96,3.7323]
[1725544480026,32.4916,134.0,133.94,0.04703388]
[1725544480225,103.02940552,134.01,133.94,0.04703388]
[1725544480624,103.02940552,134.01,133.98,3.7319]
[1725544480825,103.02940552,134.01,133.98,3.78290696]
[1725544481129,3.64406486,134.04,133.98,0.05100696]
[1725544481329,28.76,134.03,133.98,0.05100696]
[1725544481523,33.5439755,134.03,133.99,0.05581078]
[1725544481718,33.5439755,134.03,134.0,0.04864929]
[1725544481719,3.7312,134.01,134.0,0.04864929]
[1725544481922,3.7312,134.01,133.99,0.05203883]
[1725544482122,3.7312,134.01,133.99,0.05181506]
[1725544482324,3.731,134.02,133.99,0.05181506]
[1725544483125,4.7839755,134.03,133.99,0.05181506]
[1725544483329,28.76,134.02,133.99,0.05181506]
[1725544483722,3.7315,134.0,133.99,0.05181506]
[1725544486425,28.76,134.0,133.93,2.6308]
[1725544486633,28.76,134.0,133.9,35.28771015]
[1725544486833,3.7325,133.97,133.93,3.7333]
[1725544487032,3.7325,133.97,133.9,35.28771015]
[1725544487230,3.7325,133.97,133.9,31.5097]
[1725544487431,28.76,134.0,133.9,31.5097]
[1725544487432,0.05095295,133.95,133.92,0.04939711]
[1725544487737,0.05095295,133.95,133.92,28.80939711]
[1725544487933,1.0,134.01,133.94,28.76]
[1725544488338,28.76,134.05,133.99,3.7316]
[1725544488536,3.72218903,134.04,133.99,3.7316]
[1725544488732,3.731,134.02,133.99,3.7316]
[1725544488936,3.731,134.02,133.99,3.78118972]
[1725544490244,4.1124,134.07,134.01,3.7311]
[1725544490448,28.76,134.08,133.98,31.4492]
[1725544490641,3.8163577,134.08,134.03,0.04785075]
[1725544490844,3.7301,134.06,134.03,0.04785075]
[1725544491039,7.42214516,134.06,134.03,0.04785075]
[1725544491736,3.7301,134.05,134.03,0.04785075]
[1725544492636,3.7299,134.06,134.03,0.04785075]
[1725544492836,3.80932835,134.08,134.03,0.04785075]
[1725544493038,28.76,134.1,134.03,28.80785075]
[1725544493039,3.70186567,134.1,134.03,28.80785075]
[1725544493239,31.4647,134.12,134.03,28.80785075]
[1725544493440,31.4647,134.12,134.06,0.05738427]
[1725544494846,3.729,134.1,134.06,3.78718427]
[1725544495042,31.4647,134.12,134.06,0.05738427]
[1725544495451,3.7289,134.1,134.06,0.05738427]
[1725544495847,31.4647,134.12,134.06,0.05738427]
[1725544496048,28.76,134.1,134.06,0.05738427]
[1725544496449,3.7293,134.08,134.06,0.05738427]
[1725544497752,3.67230631,134.1,134.06,0.05738427]
[1725544497948,28.76,134.1,134.06,0.05738427]
[1725544498149,32.50990863,134.1,134.06,0.05738427]
[1725544498345,3.7295,134.07,134.06,0.05738427]
[1725544500049,3.7305,134.04,133.99,2.7153]
[1725544500253,28.76,134.06,133.99,2.7153]
[1725544500446,28.76,134.06,134.0,3.7315]
[1725544500645,3.7307,134.03,134.0,3.7315]
[1725544501149,0.04826324,134.03,134.0,3.78232818]
[1725544501345,0.04826324,134.03,134.0,0.05082818]
[1725544501853,3.77196119,134.03,134.0,0.05082818]
[1725544502045,0.04826324,134.03,134.0,0.05082818]
[1725544502451,3.8412766,134.03,134.0,0.05082818]
[1725544502653,3.7311,134.02,134.0,0.05082818]
[1725544502851,3.8412766,134.03,134.0,0.05082818]
[1725544503051,3.7311,134.02,134.0,0.05082818]
[1725544503254,3.84015694,134.03,134.0,0.05082818]
[1725544503450,0.04826324,134.03,134.0,0.05082818]
[1725544503941,3.74188251,134.02,134.0,0.05082818]
[1725544504142,0.04826324,134.03,134.0,0.05082818]
[1725544504346,3.7312,134.01,134.0,0.05082818]
[1725544504757,3.7703652,134.03,134.0,0.05082818]
[1725544505244,0.04826324,134.03,134.0,0.05082818]
[1725544506350,0.04826324,134.03,134.0,3.78202818]
[1725544506549,1.0,134.09,134.02,28.76]
[1725544507351,1.0,134.09,134.0,28.76]
[1725544507550,2.7186,134.13,134.03,0.05458907]
[1725544507551,3.72098115,134.1,134.03,0.05458907]
[1725544507749,31.4786,134.13,134.05,0.04964833]
[1725544507949,0.27429589,134.12,134.05,0.04964833]
[1725544508653,29.03429589,134.12,134.05,0.04964833]
[1725544508852,28.76,134.12,134.05,0.04964833]
[1725544509552,28.76,134.08,134.05,0.04964833]
[1725544509752,32.48145948,134.08,134.05,0.04964833]
[1725544510053,3.7297,134.07,134.05,0.04964833]
[1725544510955,3.7298,134.06,134.05,0.04964833]
[1725544511560,28.76,134.1,134.05,0.04964833]
[1725544511860,1.0,134.11,134.05,0.04964833]
[1725544512053,1.0,134.11,134.05,3.77974833]
[1725544512054,3.7292,134.09,134.05,3.77974833]
[1725544512254,1.0,134.11,134.05,0.04964833]
[1725544512656,3.7285,134.11,134.07,3.7295]
[1725544513058,3.7285,134.11,134.06,5.5497]
[1725544513059,3.728,134.13,134.09,3.7288]
[1725544513263,3.760454,134.17,134.1,0.05129448]
[1725544513564,0.27420598,134.16,134.1,0.05129448]
[1725544513866,3.70131323,134.17,134.1,0.05129448]
[1725544514062,0.27419029,134.16,134.1,0.05129448]
[1725544514364,3.70840173,134.15,134.1,0.05129448]
[1725544514556,31.9578,134.18,134.1,0.05129448]
[1725544515156,35.59942065,134.18,134.1,0.05129448]
[1725544515562,0.27416301,134.17,134.1,0.05129448]
[1725544515858,35.59942065,134.18,134.1,0.05129448]
[1725544516066,3.7278,134.14,134.1,0.05129448]
[1725544517062,35.59942065,134.18,134.1,0.05129448]
[1725544517960,3.7278,134.14,134.1,0.05129448]
[1725544518153,28.76,134.16,134.1,0.05129448]
[1725544518565,3.7284,134.11,134.1,0.05129448]
[1725544518769,28.76,134.12,134.05,3.7299]
[1725544518955,3.7289,134.1,134.05,3.7299]
[1725544519159,3.76893059,134.11,134.01,5.3391]
[1725544519458,28.76,134.12,134.01,5.3391]
[1725544519660,0.04823099,134.08,134.05,0.05057555]
[1725544519856,32.47272808,134.08,134.05,0.05057555]
[1725544520053,32.4898,134.06,134.05,0.05057555]
[1725544520857,28.76,134.06,133.97,5.3391]
[1725544521061,28.76,134.03,133.97,5.3391]
[1725544521264,3.66449709,134.08,133.97,5.3391]
[1725544521461,28.76,134.05,133.97,5.3391]
[1725544521758,28.76,134.05,134.0,0.04859558]
[1725544521966,0.05342535,134.02,134.0,0.04859558]
[1725544522960,0.05342535,134.02,133.92,2.599]
[1725544522961,28.76,134.01,133.92,2.599]
[1725544523167,28.76,133.99,133.92,2.599]
[1725544523559,32.58129878,133.99,133.93,3.7334]
[1725544523758,28.76,133.99,133.93,3.7334]
[1725544523961,0.04748503,133.97,133.95,0.05034313]
[1725544528969,3.7326,133.96,133.95,0.05034313]
[1725544529573,7.38087534,133.96,133.95,0.05034313]
[1725544530270,0.04748503,133.97,133.95,0.05034313]
[1725544530870,3.67365984,133.96,133.95,0.05034313]
[1725544531073,0.04748503,133.97,133.95,0.05034313]
[1725544531269,7.41932539,133.96,133.95,0.05034313]
[1725544531572,7.51275985,133.96,133.95,0.05034313]
[1725544531872,7.51275985,133.96,133.88,3.79722263]
[1725544531873,32.54015985,133.96,133.88,2.7585]
[1725544532061,32.54015985,133.96,133.89,2.6855]
[1725544532773,0.05600128,133.94,133.91,0.05655765]
[1725544533073,3.7336,133.93,133.91,0.05655765]
[1725544534468,28.81600128,133.94,133.91,0.05655765]
[1725544534867,32.54920128,133.94,133.91,0.05655765]
[1725544535064,28.81600128,133.94,133.91,0.05655765]
[1725544535770,3.7336,133.93,133.91,0.05655765]
[1725544536472,32.54930128,133.94,133.91,0.05655765]
[1725544536674,0.05600128,133.94,133.91,0.05655765]
[1725544537567,3.78930128,133.94,133.91,0.05655765]
[1725544537769,0.05600128,133.94,133.91,0.05655765]
[1725544537969,3.7334,133.93,133.91,0.05655765]
[1725544539074,0.05600128,133.94,133.91,0.05655765]
[1725544539470,0.05600128,133.94,133.93,3.7334]
[1725544541372,0.05600128,133.94,133.91,0.05655765]
[1725544542276,3.78940128,133.94,133.91,0.05655765]
[1725544542473,0.05600128,133.94,133.91,0.05655765]
[1725544543580,3.7336,133.93,133.91,0.05655765]
[1725544543776,28.76,133.93,133.91,0.05655765]
[1725544544181,3.7337,133.92,133.91,0.05655765]
[1725544544877,3.7346,133.89,133.86,290.06028]
[1725544545978,3.78566794,133.89,133.86,290.10877725]
[1725544546177,0.05106794,133.89,133.86,293.84407725]
[1725544546477,0.05106794,133.89,133.86,290.10877725]
[1725544546781,0.05106794,133.89,133.86,293.84407725]
[1725544546976,0.05106794,133.89,133.86,290.10877725]
[1725544547178,3.67961165,133.95,133.86,290.10877725]
[1725544547379,28.76,133.96,133.87,2.7859]
[1725544547580,2.7836,134.0,133.87,2.7859]
[1725544547783,3.7335,133.93,133.89,3.7344]
[1725544547976,3.78829153,133.92,133.89,3.7344]
[1725544548279,3.7336,133.93,133.9,3.7342]
[1725544548479,0.05713732,133.92,133.9,3.7342]
[1725544548880,0.05713732,133.92,133.91,3.734]
[1725544549280,0.05713732,133.92,133.89,0.05029059]
[1725544549678,28.76,133.9,133.86,287.25708]
[1725544549980,28.76,133.88,133.86,287.25708]
[1725544550282,3.7351,133.87,133.86,287.25708]
[1725544550476,3.7351,133.87,133.86,279.75708]
[1725544551287,3.72028703,133.87,133.86,279.75708]
[1725544551582,0.04814675,133.88,133.86,279.75708]
[1725544551775,28.80814675,133.88,133.86,279.75708]
[1725544551977,3.65749738,133.87,133.86,279.75708]
[1725544552176,28.80814675,133.88,133.86,279.75708]
[1725544552375,3.76625803,133.87,133.86,279.75708]
[1725544552978,28.80814675,133.88,133.86,279.75708]
[1725544553578,3.68440723,133.87,133.86,279.75708]
[1725544553883,28.80814675,133.88,133.86,279.75708]
[1725544554484,3.66395096,133.87,133.86,283.49228]
[1725544554683,3.66395096,133.87,133.86,279.75708]
[1725544555975,3.66395096,133.87,133.86,283.49248]
[1725544556279,0.04814675,133.88,133.86,279.75708]
[1725544556473,1.0,133.91,133.86,279.75708]
[1725544556672,3.69378036,133.94,133.92,3.7337]
[1725544556878,28.76,133.95,133.92,3.7337]
[1725544557185,3.0913,134.0,133.87,5.4136]
[1725544557186,3.78277433,133.94,133.87,5.4136]
[1725544557383,28.76,133.97,133.87,5.4136]
[1725544557680,0.04887186,133.93,133.92,3.7334]
[1725544557880,0.05440606,133.94,133.92,3.7334]
[1725544559486,0.05440606,133.94,133.93,3.7334]
[1725544560885,0.05440606,133.94,133.91,0.05447892]
[1725544561284,28.76,134.0,133.96,3.7325]
[1725544561477,28.76,134.0,133.9,28.76]
[1725544561681,28.76,134.0,133.91,2.604]
[1725544562280,0.05035253,133.97,133.94,0.05723697]
[1725544562782,3.79276161,133.96,133.94,0.05723697]
[1725544563179,0.05035253,133.97,133.94,0.05723697]
[1725544564480,1.0,133.99,133.94,0.05723697]
[1725544564688,3.7312,134.02,133.98,3.7319]
[1725544564882,3.7312,134.02,133.94,28.81723697]
[1725544564883,32.44829811,134.03,133.95,2.8107]
[1725544565180,3.7314,134.01,133.97,3.7321]
[1725544565384,3.7314,134.01,133.95,2.8107]
[1725544565586,32.44829811,134.03,133.97,0.04946797]
[1725544565587,0.05475009,133.99,133.97,0.04946797]
[1725544567593,28.76,134.07,133.97,0.04946797]
[1725544567792,28.76,134.07,133.98,28.76]
[1725544567988,3.8259761,134.07,133.98,28.76]
[1725544568192,3.7297,134.07,134.03,3.7304]
[1725544568390,3.69717421,134.09,134.0,28.76]
[1725544568589,0.05202989,134.06,134.03,0.05647211]
[1725544568790,0.05202989,134.06,134.04,3.7302]
[1725544569182,3.78202989,134.06,134.03,0.05647211]
[1725544569387,0.05202989,134.06,134.03,0.05647211]
[1725544569790,0.05202989,134.06,134.04,3.7301]
[1725544569992,0.05202989,134.06,134.03,0.05647211]
[1725544570190,3.80411171,134.1,134.03,0.05647211]
[1725544570392,28.76,134.13,134.07,3.7294]
[1725544570693,28.76,134.13,134.02,31.3829]
[1725544570995,28.76,134.13,134.06,3.7296]
[1725544571197,28.76,134.13,134.08,0.05557256]
[1725544571397,3.729,134.1,134.08,0.05557256]
[1725544571594,32.58015809,134.11,134.08,0.05557256]
[1725544571890,3.729,134.09,134.08,0.05557256]
[1725544572090,32.58015809,134.11,134.08,0.05557256]
[1725544572296,3.82015809,134.11,134.08,0.05557256]
[1725544572592,3.7287,134.1,134.08,0.05557256]
[1725544572897,3.729,134.09,134.08,0.05557256]
[1725544573997,32.49880667,134.1,133.91,11.21211306]
[1725544574196,28.76,134.05,133.94,5.5551]
[1725544574494,28.76,134.05,133.95,28.76]
[1725544574698,28.76,134.05,133.99,3.7315]
[1725544574895,0.05313807,134.03,134.01,0.05627754]
[1725544575297,0.05313807,134.03,134.02,3.7309]
[1725544576100,0.05313807,134.03,134.01,3.78747754]
[1725544576400,0.05313807,134.03,134.01,0.05627754]
[1725544576800,3.82730032,134.03,134.01,0.05627754]
[1725544577500,0.05313807,134.03,134.01,0.05627754]
[1725544577702,3.7287855,134.03,134.01,0.05627754]
[1725544578294,3.78383807,134.03,134.01,0.05627754]
[1725544578700,3.83849518,134.03,134.01,0.05627754]
[1725544579103,3.83849518,134.03,134.02,277.77418]
[1725544579799,7.56909518,134.03,134.02,277.77418]
[1725544581801,0.05313807,134.03,134.02,277.77418]
[1725544582002,1.0,134.09,134.02,277.77418]
[1725544582197,1.0,134.09,134.06,3.7296]
[1725544582497,28.76,134.14,134.04,28.76]
[1725544582702,28.76,134.14,134.05,3.80176788]
[1725544582903,3.7284,134.12,134.04,28.76]
[1725544583094,3.7284,134.12,134.03,2.6699]
[1725544583095,31.5304,134.16,134.07,0.05698808]
[1725544583300,28.76,134.16,134.1,0.04706419]
[1725544584019,3.728,134.13,134.1,0.04706419]
[1725544584502,28.76,134.16,134.1,0.04706419]
[1725544584503,3.7277,134.14,134.1,3.77566419]
[1725544585302,3.7279,134.13,134.1,0.04706419]
[1725544585501,28.76,134.16,134.1,2.64796419]
[1725544585709,3.7278,134.14,134.1,6.37656419]
[1725544586005,28.76,134.16,134.1,6.37656419]
[1725544586198,28.76,134.16,134.1,2.64796419]
[1725544586398,28.76,134.18,134.1,2.64796419]
[1725544586604,28.76,134.18,134.13,0.0553935]
[1725544586800,3.7276,134.14,134.13,0.0553935]
[1725544591803,28.76,134.16,134.07,6.4092]
[1725544591804,28.76,134.16,134.07,2.6798]
[1725544592110,28.76,134.12,134.07,2.6798]
[1725544592308,3.7288,134.1,134.07,2.6798]
[1725544592904,3.78568208,134.1,134.07,2.7329999]
[1725544593205,3.78568208,134.1,134.07,6.4624999]
[1725544593206,0.05688208,134.1,134.07,6.4624999]
[1725544593414,0.05688208,134.1,134.07,2.7329999]
[1725544593606,0.05688208,134.1,134.09,3.729]
[1725544594010,0.05688208,134.1,134.08,3.7292]
[1725544594410,0.05688208,134.1,134.07,2.7329999]
[1725544595314,0.05688208,134.1,134.08,3.7292]
[1725544595506,3.7285,134.11,134.08,3.7292]
[1725544596010,3.7285,134.11,134.07,2.7329999]
[1725544596011,3.7287,134.1,134.07,6.4624999]
[1725544598109,3.79830609,134.12,134.07,2.7329999]
[1725544598304,28.76,134.14,134.07,2.7329999]
[1725544598508,3.7283,134.12,134.07,2.7329999]
[1725544598708,28.76,134.14,134.08,3.7291]
[1725544599012,28.76,134.14,134.07,2.7329999]
[1725544599013,3.7289,134.1,134.07,2.7329999]
[1725544599206,3.64052513,134.11,134.07,2.7329999]
[1725544599414,28.76,134.14,134.07,6.4624999]
[1725544600207,3.7287,134.1,134.07,6.4624999]
[1725544601016,3.7286,134.11,134.08,3.7292]
[1725544602816,28.76,134.14,134.07,2.7329999]
[1725544602817,28.76,134.16,134.07,31.4929999]
[1725544603116,28.76,134.16,134.1,0.04995359]
[1725544603319,3.7281,134.12,134.1,0.04995359]
[1725544603918,3.7284,134.11,134.1,0.04995359]
[1725544604121,3.76286737,134.11,134.09,0.04739563]
[1725544604314,28.76,134.16,134.09,0.04739563]
[1725544604507,3.7286,134.11,134.09,0.04739563]
[1725544604712,3.78114277,134.12,134.09,0.04739563]
[1725544604913,28.76,134.16,134.09,0.04739563]
[1725544605216,3.7283,134.12,134.09,0.04739563]
[1725544605812,3.728,134.13,134.09,3.77619563]
[1725544606014,28.76,134.16,134.09,3.77619563]
[1725544606319,3.728,134.13,134.09,3.77619563]
[1725544606522,28.76,134.16,134.09,0.04739563]
[1725544606914,3.728,134.13,134.09,0.04739563]
[1725544607309,3.728,134.13,134.1,3.7286]
[1725544608018,3.728,134.13,134.09,3.77629563]
[1725544608312,3.7282,134.12,134.09,3.77629563]
[1725544609116,3.80809316,134.12,134.09,0.04739563]
[1725544609317,28.76,134.15,134.09,0.04739563]
[1725544609516,3.7284,134.12,134.09,0.04739563]
[1725544610120,3.6835189,134.12,134.09,0.04739563]
[1725544610422,28.76,134.15,134.09,0.04739563]
[1725544610622,3.7283,134.12,134.09,0.04739563]
[1725544610821,7.37936992,134.12,134.09,0.04739563]
[1725544611223,3.7283,134.12,134.09,0.04739563]
[1725544611420,28.76,134.17,134.09,0.04739563]
[1725544611725,28.76,134.17,134.12,0.05213006]
[1725544611927,22.93,134.16,134.12,0.05213006]
[1725544612519,3.7274,134.15,134.12,0.05213006]
[1725544612721,22.93,134.16,134.12,0.05213006]
[1725544613320,3.7277,134.14,134.12,0.05213006]
[1725544613521,22.93,134.16,134.12,3.78013006]
[1725544613717,3.7275,134.15,134.12,3.78013006]
[1725544613921,22.93,134.18,134.12,3.78013006]
[1725544614225,3.7272,134.16,134.13,3.7278]
[1725544614426,22.93,134.18,134.12,0.05213006]
[1725544614825,3.7275,134.15,134.12,3.78013006]
[1725544615326,3.7277,134.14,134.12,0.05213006]
[1725544616127,22.93,134.18,134.12,0.05213006]
[1725544616424,22.93,134.16,134.12,0.05213006]
[1725544616628,22.93,134.18,134.12,0.05213006]
[1725544616924,3.7275,134.15,134.12,0.05213006]
[1725544617114,3.7275,134.15,134.12,3.78013006]
[1725544617527,3.7271,134.16,134.12,0.05213006]
[1725544617721,3.7271,134.16,134.13,3.7277]
[1725544619030,6.61417602,134.19,134.12,2.64973006]
[1725544619228,0.27414601,134.18,134.12,2.64973006]
[1725544619428,3.7264,134.19,134.16,3.7269]
[1725544619725,3.7264,134.19,134.16,3.78186763]
[1725544620125,3.81461067,134.2,134.16,0.05496763]
[1725544620323,22.93,134.23,134.16,0.05496763]
[1725544620533,0.27408708,134.21,134.16,0.05496763]
[1725544620730,22.93,134.21,134.16,0.05496763]
[1725544620926,22.93,134.19,134.16,0.05496763]
[1725544621231,22.93,134.21,134.16,0.05496763]
[1725544621433,10.862,134.25,134.16,0.05496763]
[1725544621641,22.93,134.17,134.16,0.05496763]
[1725544621835,26.6568,134.17,134.16,0.05496763]
[1725544622137,3.7268,134.17,134.16,0.05496763]
[1725544622526,26.6568,134.17,134.16,0.05496763]
[1725544624840,3.7279,134.13,134.12,2.5976]
[1725544625030,0.05726443,134.16,134.1,2.6561]
[1725544625031,22.98726443,134.16,134.1,2.6561]
[1725544625234,22.93,134.16,134.1,2.6561]
[1725544625431,22.93,134.17,134.1,2.6561]
[1725544625934,3.77952809,134.15,134.12,3.7765795]
[1725544626140,3.77952809,134.15,134.12,0.0485795]
[1725544626334,3.77952809,134.15,134.12,3.7765795]
[1725544626539,3.7276,134.14,134.12,0.0485795]
[1725544627038,0.05202809,134.15,134.12,3.81368378]
[1725544627238,0.05202809,134.15,134.13,2.5762]
[1725544627433,4.7266,134.18,134.13,2.5762]
[1725544627434,1.0,134.18,134.13,2.5762]
[1725544627634,113.12520108,134.22,134.14,25.507]
[1725544627846,0.27409723,134.21,134.14,25.507]
[1725544628234,0.27409723,134.21,134.15,3.7272]
[1725544628440,3.7264,134.19,134.17,0.0554954]
[1725544629244,3.726,134.2,134.17,0.0554954]